NUMERO_MANDATO;RIGA_MANDATO;QUIET;IMPORTO_RIGA;IMPORTO_MANDATO;BENEFICIARIO;CIG;TITOLO_PAGAMENTO;DATA_MANDATO;CAPITOLO;ARTICOLO;NUMERO_IMPEGNO;TITOLO;DESCR_TITOLO;LIVELLO_II;DESCR_LIVELLO_II;LIVELLO_III;DESCR_LIVELLO_III;LIVELLO_IV;DESCR_LIVELLO_IV;LIVELLO_V;DESCR_LIVELLO_V;DATA_PAG_EFF
492;1;329;5.676,89;5.676,89;CONSORZIO STABILE ENERGIE LOCALI S.C.A R.L.;7459958815;Fatt.n. 96 del 06/03/2023;05/04/2023;1938;0;30;1;Spese correnti;3;Acquisto di beni e servizi;2;Acquisto di servizi;15;Contratti di servizio pubblico;15;Contratti di servizio per l'illuminazione pubblica;05/04/2023
493;1;337;283,56;283,56;COPYMAC DI ARTINI ROBERTO & C. S.A.S.;ZCD30AC200;Fatt.n. 000127/PA del 28/03/2023;06/04/2023;1065;0;47;1;Spese correnti;3;Acquisto di beni e servizi;2;Acquisto di servizi;7;Utilizzo di beni di terzi;8;Noleggi di impianti e macchinari;11/04/2023
494;1;338;379,74;379,74;COPYMAC DI ARTINI ROBERTO & C. S.A.S.;Z4330AC501;Fatt.n. 000125/PA del 28/03/2023;06/04/2023;1366;7;50;1;Spese correnti;3;Acquisto di beni e servizi;2;Acquisto di servizi;7;Utilizzo di beni di terzi;8;Noleggi di impianti e macchinari;11/04/2023
495;1;339;194,68;194,68;COPYMAC DI ARTINI ROBERTO & C. S.A.S.;ZEB30AC434;Fatt.n. 000129/PA del 28/03/2023;06/04/2023;1386;7;49;1;Spese correnti;3;Acquisto di beni e servizi;2;Acquisto di servizi;7;Utilizzo di beni di terzi;8;Noleggi di impianti e macchinari;11/04/2023
496;1;340;134,31;134,31;COPYMAC DI ARTINI ROBERTO & C. S.A.S.;Z6230AC38E;Fatt.n. 000126/PA del 28/03/2023;06/04/2023;1509;0;48;1;Spese correnti;3;Acquisto di beni e servizi;2;Acquisto di servizi;7;Utilizzo di beni di terzi;8;Noleggi di impianti e macchinari;11/04/2023
497;1;375;2.689,19;2.689,19;AMMINISTRATORI COMUNALI; ;STIPENDI MESE DI: APRILE 23;11/04/2023;1001;0;5;1;Spese correnti;3;Acquisto di beni e servizi;2;Acquisto di servizi;1;Organi e incarichi istituzionali dell'amministrazione;1;Organi istituzionali dell'amministrazione - Indennità;27/04/2023
555;1;402;76,9;281,8;ECONOMO COMUNALE; ;Rimborso bolletta N.     9 del  25-01-23 Rimborso spese viaggi amministratore;12/04/2023;1002;0;14;1;Spese correnti;3;Acquisto di beni e servizi;2;Acquisto di servizi;1;Organi e incarichi istituzionali dell'amministrazione;2;Organi istituzionali dell'amministrazione - Rimborsi;03/05/2023
555;2;402;204,9;281,8;ECONOMO COMUNALE; ;Rimborso bolletta N.     1 del  25-01-23 Rimborso spese viaggi Amministatore periodo Settembre-Dicembre 2022 (richiesta del 09.01.2023);12/04/2023;1002;0;14;1;Spese correnti;3;Acquisto di beni e servizi;2;Acquisto di servizi;1;Organi e incarichi istituzionali dell'amministrazione;2;Organi istituzionali dell'amministrazione - Rimborsi;03/05/2023
556;1;403;20;52;ECONOMO COMUNALE; ;Rimborso bolletta N.    14 del  23-03-23 Acquisto num. 2 fototessere (rif. determinazione 81 del 20.10.2022);12/04/2023;1042;0;237;1;Spese correnti;3;Acquisto di beni e servizi;2;Acquisto di servizi;18;Servizi sanitari;1;Spese per accertamenti sanitari resi necessari dall'attività lavorativa;03/05/2023
556;2;403;32;52;ECONOMO COMUNALE; ;Rimborso bolletta N.    13 del  23-03-23 Acquisto num. 2 marche da bollo (rif. determinazione 81 del 20.10.2022);12/04/2023;1042;0;237;1;Spese correnti;3;Acquisto di beni e servizi;2;Acquisto di servizi;18;Servizi sanitari;1;Spese per accertamenti sanitari resi necessari dall'attività lavorativa;03/05/2023
557;1;404;1,5;25,55;ECONOMO COMUNALE; ;Rimborso bolletta N.    15 del  23-03-23 Rimborso spese viaggi dipendente comunale;12/04/2023;1045;0;2;1;Spese correnti;3;Acquisto di beni e servizi;2;Acquisto di servizi;2;Organizzazione eventi, pubblicita` e servizi per trasferta;1;Rimborso per viaggio e trasloco;03/05/2023
557;2;404;9,62;25,55;ECONOMO COMUNALE; ;Rimborso bolletta N.    12 del  21-03-23 Rimborso spese viaggi dipendente comunale (rif. richiesta del 18.01.2023);12/04/2023;1045;0;2;1;Spese correnti;3;Acquisto di beni e servizi;2;Acquisto di servizi;2;Organizzazione eventi, pubblicita` e servizi per trasferta;1;Rimborso per viaggio e trasloco;03/05/2023
557;3;404;14,43;25,55;ECONOMO COMUNALE; ;Rimborso bolletta N.    11 del  21-03-23 Rimborso spese viaggi Segretario comunale (rif. richiesta del 13.01.2023);12/04/2023;1045;0;2;1;Spese correnti;3;Acquisto di beni e servizi;2;Acquisto di servizi;2;Organizzazione eventi, pubblicita` e servizi per trasferta;1;Rimborso per viaggio e trasloco;03/05/2023
558;1;405;5,4;5,4;ECONOMO COMUNALE; ;Rimborso bolletta N.     2 del  25-01-23 Rimborso spese viaggi dipendente comunale (rif. richiesta del 18.01.2023);12/04/2023;1045;0;13;1;Spese correnti;3;Acquisto di beni e servizi;2;Acquisto di servizi;2;Organizzazione eventi, pubblicita` e servizi per trasferta;1;Rimborso per viaggio e trasloco;03/05/2023
561;1;408;40;947,47;ECONOMO COMUNALE; ;Rimborso bolletta N.    22 del  30-03-23 Acquisto composizione floreale per onoranza centenario suora Dalla Costa (rif scontrino n. 1037-0001 del 22.02.2023);12/04/2023;1210;2;63;1;Spese correnti;3;Acquisto di beni e servizi;1;Acquisto di beni;2;Altri beni di consumo;999;Altri beni e materiali di consumo n.a.c.;03/05/2023
561;2;408;48;947,47;ECONOMO COMUNALE; ;Rimborso bolletta N.    16 del  24-03-23 Acquisto libro per aggiornamento professionale (rif. scontrino n. 0983-0003 del 14.03.2023);12/04/2023;1210;2;63;1;Spese correnti;3;Acquisto di beni e servizi;1;Acquisto di beni;2;Altri beni di consumo;999;Altri beni e materiali di consumo n.a.c.;03/05/2023
561;3;408;50;947,47;ECONOMO COMUNALE; ;Rimborso bolletta N.    21 del  30-03-23 Acquisto composizione floreale per celebrazione foibe (rif. scontrino n. 1030-0005 del 15.02.2023);12/04/2023;1210;2;63;1;Spese correnti;3;Acquisto di beni e servizi;1;Acquisto di beni;2;Altri beni di consumo;999;Altri beni e materiali di consumo n.a.c.;03/05/2023
561;4;408;58;947,47;ECONOMO COMUNALE; ;Rimborso bolletta N.    20 del  24-03-23 Acquisto materiale per biblioteca (rif. scontrino n. 0994-0001 del 14.03.2023);12/04/2023;1210;2;63;1;Spese correnti;3;Acquisto di beni e servizi;1;Acquisto di beni;2;Altri beni di consumo;999;Altri beni e materiali di consumo n.a.c.;03/05/2023
561;5;408;78,51;947,47;ECONOMO COMUNALE; ;Rimborso bolletta N.    24 del  31-03-23 Spese postali effettuate dal 09.01.2023 al 30.03.2023;12/04/2023;1210;2;63;1;Spese correnti;3;Acquisto di beni e servizi;1;Acquisto di beni;2;Altri beni di consumo;999;Altri beni e materiali di consumo n.a.c.;03/05/2023
561;6;408;187,88;947,47;ECONOMO COMUNALE; ;Rimborso bolletta N.    19 del  24-03-23 Acquisto materiale per biblioteca (rif. scontrino n. 0978-0001 del 23.02.2023);12/04/2023;1210;2;63;1;Spese correnti;3;Acquisto di beni e servizi;1;Acquisto di beni;2;Altri beni di consumo;999;Altri beni e materiali di consumo n.a.c.;03/05/2023
561;7;408;235,28;947,47;ECONOMO COMUNALE; ;Rimborso bolletta N.    18 del  24-03-23 Acquisto materiale per biblioteca (rif. scontrino n. 0973-0002 del 17.02.2023);12/04/2023;1210;2;63;1;Spese correnti;3;Acquisto di beni e servizi;1;Acquisto di beni;2;Altri beni di consumo;999;Altri beni e materiali di consumo n.a.c.;03/05/2023
561;8;408;249,8;947,47;ECONOMO COMUNALE; ;Rimborso bolletta N.    17 del  24-03-23 Acquisto materiale per biblioteca (rif. scontrino n. 0963-0001 del 10.02.2023);12/04/2023;1210;2;63;1;Spese correnti;3;Acquisto di beni e servizi;1;Acquisto di beni;2;Altri beni di consumo;999;Altri beni e materiali di consumo n.a.c.;03/05/2023
563;1;350;150;150;MAESTRO PIERO;Z613926696;IMPEGNO DI SPESA PER STAMPA GIORNALINO DI FARA - DICEMBRE 2022.;13/04/2023;1051;0;299;1;Spese correnti;3;Acquisto di beni e servizi;1;Acquisto di beni;1;Giornali, riviste e pubblicazioni;2;Pubblicazioni;14/04/2023
564;1;351;330,13;330,13;COPYMAC DI ARTINI ROBERTO & C. S.A.S.;ZD22589ECE;Fatt.n. 000128/PA del 28/03/2023;13/04/2023;1085;0;94;1;Spese correnti;3;Acquisto di beni e servizi;2;Acquisto di servizi;7;Utilizzo di beni di terzi;8;Noleggi di impianti e macchinari;14/04/2023
565;1;352;717,82;1.662,32;CON TE COOPERATIVA SOCIALE;Z2A34ACAA5;Fatt.n. 179 del 03/03/2023;13/04/2023;1184;0;19;1;Spese correnti;3;Acquisto di beni e servizi;2;Acquisto di servizi;16;Servizi amministrativi;999;Altre spese per servizi amministrativi;14/04/2023
565;2;352;944,5;1.662,32;CON TE COOPERATIVA SOCIALE;Z2A34ACAA5;Fatt.n. 253 del 20/03/2023;13/04/2023;1184;0;19;1;Spese correnti;3;Acquisto di beni e servizi;2;Acquisto di servizi;16;Servizi amministrativi;999;Altre spese per servizi amministrativi;14/04/2023
566;1;353;177,66;177,66;Telecom Italia S.p.A.;Z0F3225780;Fatt.n. 7X00620778 del 09/02/2023 Fattura Febbraio 23: Periodo 2/23 Dic-Gen;13/04/2023;1209;3;251;1;Spese correnti;3;Acquisto di beni e servizi;2;Acquisto di servizi;5;Utenze e canoni;1;Telefonia fissa;14/04/2023
567;1;354;20,73;134,78;FASTWEB SPA;Z092D1F2D3;Fatt.n. PAE0006205 del 28/02/2023;13/04/2023;1209;3;253;1;Spese correnti;3;Acquisto di beni e servizi;2;Acquisto di servizi;5;Utenze e canoni;1;Telefonia fissa;14/04/2023
567;2;354;31,1;134,78;FASTWEB SPA;Z092D1F2D3;Fatt.n. PAE0006205 del 28/02/2023;13/04/2023;1209;3;253;1;Spese correnti;3;Acquisto di beni e servizi;2;Acquisto di servizi;5;Utenze e canoni;1;Telefonia fissa;14/04/2023
567;3;354;82,95;134,78;FASTWEB SPA;Z092D1F2D3;Fatt.n. PAE0006205 del 28/02/2023;13/04/2023;1209;3;253;1;Spese correnti;3;Acquisto di beni e servizi;2;Acquisto di servizi;5;Utenze e canoni;1;Telefonia fissa;14/04/2023
568;1;355;13,09;33,82;FASTWEB SPA;Z092D1F2D3;Fatt.n. PAE0006205 del 28/02/2023;13/04/2023;1366;4;254;1;Spese correnti;3;Acquisto di beni e servizi;2;Acquisto di servizi;5;Utenze e canoni;1;Telefonia fissa;14/04/2023
568;2;355;20,73;33,82;FASTWEB SPA;Z092D1F2D3;Fatt.n. PAE0006205 del 28/02/2023;13/04/2023;1366;4;254;1;Spese correnti;3;Acquisto di beni e servizi;2;Acquisto di servizi;5;Utenze e canoni;1;Telefonia fissa;14/04/2023
569;1;356;20,73;20,73;FASTWEB SPA;Z092D1F2D3;Fatt.n. PAE0006205 del 28/02/2023;13/04/2023;1386;2;255;1;Spese correnti;3;Acquisto di beni e servizi;2;Acquisto di servizi;5;Utenze e canoni;1;Telefonia fissa;14/04/2023
570;1;357;20,73;20,73;FASTWEB SPA;Z092D1F2D3;Fatt.n. PAE0006205 del 28/02/2023;13/04/2023;1476;3;256;1;Spese correnti;3;Acquisto di beni e servizi;2;Acquisto di servizi;5;Utenze e canoni;1;Telefonia fissa;14/04/2023
571;1;358;450,91;450,91;FONTANA MICHAEL;Z9A38851AB;Fatt.n. 18 del 31/03/2023;13/04/2023;1656;5;12;1;Spese correnti;3;Acquisto di beni e servizi;2;Acquisto di servizi;15;Contratti di servizio pubblico;999;Altre spese per contratti di servizio pubblico;14/04/2023
572;1;359;22.145,88;22.145,88;ALTO VICENTINO AMBIENTE S.R.L.; ;Fatt.n. 238FS del 31/03/2023;13/04/2023;1737;0;37;1;Spese correnti;3;Acquisto di beni e servizi;2;Acquisto di servizi;15;Contratti di servizio pubblico;5;Contratti di servizio per il conferimento in discarica dei rifiuti;14/04/2023
573;1;360;627,06;627,06;MANO AMICA SOCIETA' COOPERTIVA SOCIALE ONLUS;ZA92FF198E;Fatt.n. 194 PA del 28/02/2023 FATTURA;13/04/2023;1800;0;3;1;Spese correnti;3;Acquisto di beni e servizi;2;Acquisto di servizi;15;Contratti di servizio pubblico;9;Contratti di servizio di assistenza sociale domiciliare;14/04/2023
574;1;411;0,19;0,19;EQUITALIA NORD SPA AGENTE PER LA RISCOSSIONE; ;SPESE RISCOSSIONE TRIBUTI - COMPENSO PER RUOLI MANDATO VINCOLATO ALLA REVERSALE 331;14/04/2023;1187;0;37;1;Spese correnti;3;Acquisto di beni e servizi;2;Acquisto di servizi;3;Aggi di riscossione;999;Altri aggi di riscossione n.a.c.;05/05/2023
575;1;412;9,5;9,5;EQUITALIA NORD SPA AGENTE PER LA RISCOSSIONE; ;SPESE RISCOSSIONE TRIBUTI - COMPENSO PER RUOLI MANDATO VINCOLATO ALLA REVERSALE 334;14/04/2023;1187;0;37;1;Spese correnti;3;Acquisto di beni e servizi;2;Acquisto di servizi;3;Aggi di riscossione;999;Altri aggi di riscossione n.a.c.;05/05/2023
576;1;413;3,15;3,15;EQUITALIA NORD SPA AGENTE PER LA RISCOSSIONE; ;SPESE RISCOSSIONE TRIBUTI - COMPENSO PER RUOLI MANDATO VINCOLATO ALLA REVERSALE 339;14/04/2023;1187;0;37;1;Spese correnti;3;Acquisto di beni e servizi;2;Acquisto di servizi;3;Aggi di riscossione;999;Altri aggi di riscossione n.a.c.;05/05/2023
577;1;414;14,91;14,91;EQUITALIA NORD SPA AGENTE PER LA RISCOSSIONE; ;SPESE RISCOSSIONE TRIBUTI - COMPENSO PER RUOLI MANDATO VINCOLATO ALLA REVERSALE 341;14/04/2023;1187;0;37;1;Spese correnti;3;Acquisto di beni e servizi;2;Acquisto di servizi;3;Aggi di riscossione;999;Altri aggi di riscossione n.a.c.;05/05/2023
578;1;415;0,55;0,55;EQUITALIA NORD SPA AGENTE PER LA RISCOSSIONE; ;SPESE RISCOSSIONE TRIBUTI - COMPENSO PER RUOLI MANDATO VINCOLATO ALLA REVERSALE 344;14/04/2023;1187;0;37;1;Spese correnti;3;Acquisto di beni e servizi;2;Acquisto di servizi;3;Aggi di riscossione;999;Altri aggi di riscossione n.a.c.;05/05/2023
579;1;416;4,01;4,01;EQUITALIA NORD SPA AGENTE PER LA RISCOSSIONE; ;SPESE RISCOSSIONE TRIBUTI - COMPENSO PER RUOLI MANDATO VINCOLATO ALLA REVERSALE 350;14/04/2023;1187;0;37;1;Spese correnti;3;Acquisto di beni e servizi;2;Acquisto di servizi;3;Aggi di riscossione;999;Altri aggi di riscossione n.a.c.;05/05/2023
580;1;361;10.684,06;10.684,06;LEONARDI VIAGGI SRL;93637223D7;Fatt.n. 226 del 31/03/2023 Servizio di Trasporto Persone;14/04/2023;1418;0;191;1;Spese correnti;3;Acquisto di beni e servizi;2;Acquisto di servizi;15;Contratti di servizio pubblico;2;Contratti di servizio di trasporto scolastico;14/04/2023
581;1;395;-4.060,16;4.060,16;CONSYLIO SRL;Z00360BB37;SALDO Fatt.n. 3  del 19/04/2023;14/04/2023;3127;0;337;2;Spese in conto capitale;2;Investimenti fissi lordi e acquisto di terreni;1;Beni materiali;9;Beni immobili;3;Fabbricati ad uso scolastico;28/04/2023
581;2;395;4.060,16;4.060,16;CONSYLIO SRL;Z00360BB37;Fatt.n. 67 del 31/03/2023 972202202;14/04/2023;3127;0;337;2;Spese in conto capitale;2;Investimenti fissi lordi e acquisto di terreni;1;Beni materiali;9;Beni immobili;3;Fabbricati ad uso scolastico;28/04/2023
581;3;395;4.060,16;4.060,16;CONSYLIO SRL;Z00360BB37;SALDO Fatt.n. 72  del 19/04/2023 972202202;14/04/2023;3127;0;337;2;Spese in conto capitale;2;Investimenti fissi lordi e acquisto di terreni;1;Beni materiali;9;Beni immobili;3;Fabbricati ad uso scolastico;28/04/2023
582;1;417;0,13;0,13;EQUITALIA NORD SPA AGENTE PER LA RISCOSSIONE; ;SPESE RISCOSSIONE TRIBUTI - COMPENSO PER RUOLI MANDATO VINCOLATO ALLA REVERSALE 354;17/04/2023;1187;0;37;1;Spese correnti;3;Acquisto di beni e servizi;2;Acquisto di servizi;3;Aggi di riscossione;999;Altri aggi di riscossione n.a.c.;05/05/2023
583;1;418;0,54;0,54;EQUITALIA NORD SPA AGENTE PER LA RISCOSSIONE; ;SPESE RISCOSSIONE TRIBUTI - COMPENSO PER RUOLI MANDATO VINCOLATO ALLA REVERSALE 356;17/04/2023;1187;0;37;1;Spese correnti;3;Acquisto di beni e servizi;2;Acquisto di servizi;3;Aggi di riscossione;999;Altri aggi di riscossione n.a.c.;05/05/2023
584;1;419;0,25;0,25;EQUITALIA NORD SPA AGENTE PER LA RISCOSSIONE; ;SPESE RISCOSSIONE TRIBUTI - COMPENSO PER RUOLI MANDATO VINCOLATO ALLA REVERSALE 358;17/04/2023;1187;0;37;1;Spese correnti;3;Acquisto di beni e servizi;2;Acquisto di servizi;3;Aggi di riscossione;999;Altri aggi di riscossione n.a.c.;05/05/2023
585;1;369;161,81;161,81;FORNITURE INDUSTRIALI MORO SNC;Z7C304DAD6;Fatt.n. 2023-E-0000007 del 31/03/2023 0;17/04/2023;1156;1;35;1;Spese correnti;3;Acquisto di beni e servizi;1;Acquisto di beni;2;Altri beni di consumo;7;Altri materiali tecnico-specialistici non sanitari;17/04/2023
586;1;370;1.674,39;3.378,27;CON TE COOPERATIVA SOCIALE;8573456FB1;Fatt.n. 196 del 06/03/2023;17/04/2023;1801;0;2;1;Spese correnti;3;Acquisto di beni e servizi;2;Acquisto di servizi;15;Contratti di servizio pubblico;9;Contratti di servizio di assistenza sociale domiciliare;17/04/2023
586;2;370;1.703,88;3.378,27;CON TE COOPERATIVA SOCIALE;8573456FB1;Fatt.n. 248 del 20/03/2023;17/04/2023;1801;0;2;1;Spese correnti;3;Acquisto di beni e servizi;2;Acquisto di servizi;15;Contratti di servizio pubblico;9;Contratti di servizio di assistenza sociale domiciliare;17/04/2023
587;1;371;77,35;77,35;VACCARI ANTONIO GIULIO S.p.A.;Z3437EBD7A;Fatt.n. 29/PA del 31/03/2023 Fattura Differita Pubblica Amminist;17/04/2023;1928;4;216;1;Spese correnti;3;Acquisto di beni e servizi;1;Acquisto di beni;2;Altri beni di consumo;999;Altri beni e materiali di consumo n.a.c.;17/04/2023
588;1;372;13,55;430,72;A2A ENERGIA SPA;7459958815;Fatt.n. 823000094281 del 06/04/2023 FORNITURA ENERGIA ELETTRICA periodo: 01.01.2023-28.02.2023 POD IT001E35196035 Contatore 19E4E5LA106070412 kWh 39;17/04/2023;1938;0;30;1;Spese correnti;3;Acquisto di beni e servizi;2;Acquisto di servizi;15;Contratti di servizio pubblico;15;Contratti di servizio per l'illuminazione pubblica;17/04/2023
588;2;372;18,8;430,72;A2A ENERGIA SPA;7459958815;Fatt.n. 823000095770 del 11/04/2023 FORNITURA ENERGIA ELETTRICA periodo: 01.01.2023-28.02.2023 POD IT001E32137198 Contatore 05E1E5A2101304498 kWh 54;17/04/2023;1938;0;30;1;Spese correnti;3;Acquisto di beni e servizi;2;Acquisto di servizi;15;Contratti di servizio pubblico;15;Contratti di servizio per l'illuminazione pubblica;17/04/2023
588;3;372;25,41;430,72;A2A ENERGIA SPA;7459958815;Fatt.n. 823000098258 del 11/04/2023 FORNITURA ENERGIA ELETTRICA periodo: 01.01.2023-28.02.2023 POD IT001E32249705 Contatore 04E1E5A2100275566 kWh 72;17/04/2023;1938;0;30;1;Spese correnti;3;Acquisto di beni e servizi;2;Acquisto di servizi;15;Contratti di servizio pubblico;15;Contratti di servizio per l'illuminazione pubblica;17/04/2023
588;4;372;29,84;430,72;A2A ENERGIA SPA;7459958815;Fatt.n. 823000097606 del 11/04/2023 FORNITURA ENERGIA ELETTRICA periodo: 01.01.2023-28.02.2023 POD IT001E32260885 Contatore 05E1E5A2101656729 kWh 86;17/04/2023;1938;0;30;1;Spese correnti;3;Acquisto di beni e servizi;2;Acquisto di servizi;15;Contratti di servizio pubblico;15;Contratti di servizio per l'illuminazione pubblica;17/04/2023
588;5;372;41,8;430,72;A2A ENERGIA SPA;7459958815;Fatt.n. 823000094049 del 06/04/2023 FORNITURA ENERGIA ELETTRICA periodo: 01.01.2023-28.02.2023 POD IT001E33571944 Contatore 08E4E5A7100368871 kWh 74;17/04/2023;1938;0;30;1;Spese correnti;3;Acquisto di beni e servizi;2;Acquisto di servizi;15;Contratti di servizio pubblico;15;Contratti di servizio per l'illuminazione pubblica;17/04/2023
588;6;372;41,82;430,72;A2A ENERGIA SPA;7459958815;Fatt.n. 823000096468 del 11/04/2023 FORNITURA ENERGIA ELETTRICA periodo: 01.01.2023-28.02.2023 POD IT001E33571946 Contatore 08E4E5A7100368874 kWh 74;17/04/2023;1938;0;30;1;Spese correnti;3;Acquisto di beni e servizi;2;Acquisto di servizi;15;Contratti di servizio pubblico;15;Contratti di servizio per l'illuminazione pubblica;17/04/2023
588;7;372;48,89;430,72;A2A ENERGIA SPA;7459958815;Fatt.n. 823000096091 del 11/04/2023 FORNITURA ENERGIA ELETTRICA periodo: 01.01.2023-28.02.2023 POD IT001E33577560 Contatore 05E1E5A2101656622 kWh 142;17/04/2023;1938;0;30;1;Spese correnti;3;Acquisto di beni e servizi;2;Acquisto di servizi;15;Contratti di servizio pubblico;15;Contratti di servizio per l'illuminazione pubblica;17/04/2023
588;8;372;66,43;430,72;A2A ENERGIA SPA;7459958815;Fatt.n. 823000093564 del 06/04/2023 FORNITURA ENERGIA ELETTRICA periodo: 01.01.2023-28.02.2023 POD IT001E32137195 Contatore 05E1E5A2101304504 kWh 193;17/04/2023;1938;0;30;1;Spese correnti;3;Acquisto di beni e servizi;2;Acquisto di servizi;15;Contratti di servizio pubblico;15;Contratti di servizio per l'illuminazione pubblica;17/04/2023
588;9;372;144,18;430,72;A2A ENERGIA SPA;7459958815;Fatt.n. 823000097901 del 11/04/2023 FORNITURA ENERGIA ELETTRICA periodo: 01.01.2023-28.02.2023 POD IT001E31516558 Contatore 04E1E5A2100150303 kWh 415;17/04/2023;1938;0;30;1;Spese correnti;3;Acquisto di beni e servizi;2;Acquisto di servizi;15;Contratti di servizio pubblico;15;Contratti di servizio per l'illuminazione pubblica;17/04/2023
589;1;420;0,15;0,15;EQUITALIA NORD SPA AGENTE PER LA RISCOSSIONE; ;SPESE RISCOSSIONE TRIBUTI - COMPENSO PER RUOLI MANDATO VINCOLATO ALLA REVERSALE 364;18/04/2023;1187;0;37;1;Spese correnti;3;Acquisto di beni e servizi;2;Acquisto di servizi;3;Aggi di riscossione;999;Altri aggi di riscossione n.a.c.;05/05/2023
590;1;421;0,51;0,51;EQUITALIA NORD SPA AGENTE PER LA RISCOSSIONE; ;SPESE RISCOSSIONE TRIBUTI - COMPENSO PER RUOLI MANDATO VINCOLATO ALLA REVERSALE 367;18/04/2023;1187;0;37;1;Spese correnti;3;Acquisto di beni e servizi;2;Acquisto di servizi;3;Aggi di riscossione;999;Altri aggi di riscossione n.a.c.;05/05/2023
591;1;422;0,03;0,03;EQUITALIA NORD SPA AGENTE PER LA RISCOSSIONE; ;SPESE RISCOSSIONE TRIBUTI - COMPENSO PER RUOLI MANDATO VINCOALTO ALLA REVERSALE 369;18/04/2023;1187;0;37;1;Spese correnti;3;Acquisto di beni e servizi;2;Acquisto di servizi;3;Aggi di riscossione;999;Altri aggi di riscossione n.a.c.;05/05/2023
592;1;423;36,52;36,52;EQUITALIA NORD SPA AGENTE PER LA RISCOSSIONE; ;SPESE RISCOSSIONE TRIBUTI - COMPENSO PER RUOLI MANDATO VINCOLATO ALLA REVERSALE 374;18/04/2023;1187;0;37;1;Spese correnti;3;Acquisto di beni e servizi;2;Acquisto di servizi;3;Aggi di riscossione;999;Altri aggi di riscossione n.a.c.;05/05/2023
593;1;424;1,89;1,89;EQUITALIA NORD SPA AGENTE PER LA RISCOSSIONE; ;SPESE RISCOSSIONE TRIBUTI - COMPENSO PER RUOLI MANDATO VINCOLATO ALLA REVERSALE 379;18/04/2023;1187;0;37;1;Spese correnti;3;Acquisto di beni e servizi;2;Acquisto di servizi;3;Aggi di riscossione;999;Altri aggi di riscossione n.a.c.;05/05/2023
594;1;425;0,26;0,26;EQUITALIA NORD SPA AGENTE PER LA RISCOSSIONE; ;SPESE RISCOSSIONE TRIBUTI - COMPENSO PER RUOLI MANDATO VINCOLATO ALLA REVERSALE 381;18/04/2023;1187;0;37;1;Spese correnti;3;Acquisto di beni e servizi;2;Acquisto di servizi;3;Aggi di riscossione;999;Altri aggi di riscossione n.a.c.;05/05/2023
595;1;426;1,16;1,16;EQUITALIA NORD SPA AGENTE PER LA RISCOSSIONE; ;SPESE RISCOSSIONE TRIBUTI - COMPENSO PER RUOLI MANDATO VINCOLATO ALLA REVERSALE 383;18/04/2023;1187;0;37;1;Spese correnti;3;Acquisto di beni e servizi;2;Acquisto di servizi;3;Aggi di riscossione;999;Altri aggi di riscossione n.a.c.;05/05/2023
596;1;427;0,5;0,5;EQUITALIA NORD SPA AGENTE PER LA RISCOSSIONE; ;SPESE RISCOSSIONE TRIBUTI - COMPENSO PER RUOLI MANDATO VINCOLATO ALLA REVERSALE 385;18/04/2023;1187;0;37;1;Spese correnti;3;Acquisto di beni e servizi;2;Acquisto di servizi;3;Aggi di riscossione;999;Altri aggi di riscossione n.a.c.;05/05/2023
597;1;379;720;720;LAABID ABDELELAH; ;IMPEGNO DI SPESA E LIQUIDAZIONE AI BENEFICIARI DELLIMPEGNATIVA DI CURA DOMICILIARE 2 SEMESTRE ICDB ANNO 2022;27/04/2023;1889;0;66;1;Spese correnti;4;Trasferimenti correnti;2;Trasferimenti correnti a Famiglie;2;Interventi assistenziali;999;Altri assegni e sussidi assistenziali;28/04/2023
598;1;380;360;360;RE VIRGILIO; ;IMPEGNO DI SPESA E LIQUIDAZIONE AI BENEFICIARI DELLIMPEGNATIVA DI CURA DOMICILIARE 2 SEMESTRE ICDB ANNO 2022;27/04/2023;1889;0;66;1;Spese correnti;4;Trasferimenti correnti;2;Trasferimenti correnti a Famiglie;2;Interventi assistenziali;999;Altri assegni e sussidi assistenziali;28/04/2023
599;1;381;720;720;MAINO ANTONIETTA; ;IMPEGNO DI SPESA E LIQUIDAZIONE AI BENEFICIARI DELLIMPEGNATIVA DI CURA DOMICILIARE 2 SEMESTRE ICDB ANNO 2022;27/04/2023;1889;0;66;1;Spese correnti;4;Trasferimenti correnti;2;Trasferimenti correnti a Famiglie;2;Interventi assistenziali;999;Altri assegni e sussidi assistenziali;28/04/2023
600;1;382;120;120;BONATO MARIA; ;IMPEGNO DI SPESA E LIQUIDAZIONE AI BENEFICIARI DELLIMPEGNATIVA DI CURA DOMICILIARE 2 SEMESTRE ICDB ANNO 2022;27/04/2023;1889;0;66;1;Spese correnti;4;Trasferimenti correnti;2;Trasferimenti correnti a Famiglie;2;Interventi assistenziali;999;Altri assegni e sussidi assistenziali;28/04/2023
601;1;383;720;720;COSTA GIACOMO; ;IMPEGNO DI SPESA E LIQUIDAZIONE AI BENEFICIARI DELLIMPEGNATIVA DI CURA DOMICILIARE 2 SEMESTRE ICDB ANNO 2022;27/04/2023;1889;0;66;1;Spese correnti;4;Trasferimenti correnti;2;Trasferimenti correnti a Famiglie;2;Interventi assistenziali;999;Altri assegni e sussidi assistenziali;28/04/2023
602;1;384;720;720;CUCCAROLLO STELLA; ;IMPEGNO DI SPESA E LIQUIDAZIONE AI BENEFICIARI DELLIMPEGNATIVA DI CURA DOMICILIARE 2 SEMESTRE ICDB ANNO 2022;27/04/2023;1889;0;66;1;Spese correnti;4;Trasferimenti correnti;2;Trasferimenti correnti a Famiglie;2;Interventi assistenziali;999;Altri assegni e sussidi assistenziali;28/04/2023
603;1;385;720;720;JATA ERSIDA; ;IMPEGNO DI SPESA E LIQUIDAZIONE AI BENEFICIARI DELLIMPEGNATIVA DI CURA DOMICILIARE 2 SEMESTRE ICDB ANNO 2022;27/04/2023;1889;0;66;1;Spese correnti;4;Trasferimenti correnti;2;Trasferimenti correnti a Famiglie;2;Interventi assistenziali;999;Altri assegni e sussidi assistenziali;28/04/2023
604;1;386;720;720;DAL PONTE CRISTIANO; ;IMPEGNO DI SPESA E LIQUIDAZIONE AI BENEFICIARI DELLIMPEGNATIVA DI CURA DOMICILIARE 2 SEMESTRE ICDB ANNO 2022;27/04/2023;1889;0;66;1;Spese correnti;4;Trasferimenti correnti;2;Trasferimenti correnti a Famiglie;2;Interventi assistenziali;999;Altri assegni e sussidi assistenziali;28/04/2023
605;1;387;720;720;SPEROTTO MARIA GRAZIA; ;IMPEGNO DI SPESA E LIQUIDAZIONE AI BENEFICIARI DELLIMPEGNATIVA DI CURA DOMICILIARE 2 SEMESTRE ICDB ANNO 2022;27/04/2023;1889;0;66;1;Spese correnti;4;Trasferimenti correnti;2;Trasferimenti correnti a Famiglie;2;Interventi assistenziali;999;Altri assegni e sussidi assistenziali;28/04/2023
606;1;388;720;720;CALLEGARI SILVIA; ;IMPEGNO DI SPESA E LIQUIDAZIONE AI BENEFICIARI DELLIMPEGNATIVA DI CURA DOMICILIARE 2 SEMESTRE ICDB ANNO 2022;27/04/2023;1889;0;66;1;Spese correnti;4;Trasferimenti correnti;2;Trasferimenti correnti a Famiglie;2;Interventi assistenziali;999;Altri assegni e sussidi assistenziali;28/04/2023
607;1;389;720;720;SPEROTTO PIETRO; ;IMPEGNO DI SPESA E LIQUIDAZIONE AI BENEFICIARI DELLIMPEGNATIVA DI CURA DOMICILIARE 2 SEMESTRE ICDB ANNO 2022;27/04/2023;1889;0;66;1;Spese correnti;4;Trasferimenti correnti;2;Trasferimenti correnti a Famiglie;2;Interventi assistenziali;999;Altri assegni e sussidi assistenziali;28/04/2023
608;1;390;120;120;MANZARDO LUCIA; ;IMPEGNO DI SPESA E LIQUIDAZIONE AI BENEFICIARI DELLIMPEGNATIVA DI CURA DOMICILIARE 2 SEMESTRE ICDB ANNO 2022;27/04/2023;1889;0;66;1;Spese correnti;4;Trasferimenti correnti;2;Trasferimenti correnti a Famiglie;2;Interventi assistenziali;999;Altri assegni e sussidi assistenziali;28/04/2023
609;1;391;720;720;DALLE MOLLE ELISA; ;IMPEGNO DI SPESA E LIQUIDAZIONE AI BENEFICIARI DELLIMPEGNATIVA DI CURA DOMICILIARE 2 SEMESTRE ICDB ANNO 2022;27/04/2023;1889;0;66;1;Spese correnti;4;Trasferimenti correnti;2;Trasferimenti correnti a Famiglie;2;Interventi assistenziali;999;Altri assegni e sussidi assistenziali;28/04/2023
610;1;392;720;720;LOVISON DINO; ;IMPEGNO DI SPESA E LIQUIDAZIONE AI BENEFICIARI DELLIMPEGNATIVA DI CURA DOMICILIARE 2 SEMESTRE ICDB ANNO 2022;27/04/2023;1889;0;66;1;Spese correnti;4;Trasferimenti correnti;2;Trasferimenti correnti a Famiglie;2;Interventi assistenziali;999;Altri assegni e sussidi assistenziali;28/04/2023
611;1;393;720;720;ROSSI LORETTA; ;IMPEGNO DI SPESA E LIQUIDAZIONE AI BENEFICIARI DELLIMPEGNATIVA DI CURA DOMICILIARE 2 SEMESTRE ICDB ANNO 2022;27/04/2023;1889;0;66;1;Spese correnti;4;Trasferimenti correnti;2;Trasferimenti correnti a Famiglie;2;Interventi assistenziali;999;Altri assegni e sussidi assistenziali;28/04/2023
612;1;394;720;720;DAL SASSO FIORENZO; ;IMPEGNO DI SPESA E LIQUIDAZIONE AI BENEFICIARI DELLIMPEGNATIVA DI CURA DOMICILIARE 2 SEMESTRE ICDB ANNO 2022;27/04/2023;1889;0;66;1;Spese correnti;4;Trasferimenti correnti;2;Trasferimenti correnti a Famiglie;2;Interventi assistenziali;999;Altri assegni e sussidi assistenziali;28/04/2023
613;1;396;36,86;36,86;POSTE ITALIANE S.P.A.;Z2C399259D;SALDO Fatt.n. 1023093417  del 12/04/2023 30026276-008;28/04/2023;1210;6;25;1;Spese correnti;3;Acquisto di beni e servizi;2;Acquisto di servizi;16;Servizi amministrativi;2;Spese postali;28/04/2023
614;1;397;220,66;220,66;CHEF EXPRESS S.R.L.;ZED393B953;SALDO Fatt.n. 3/8/2023  del 31/03/2023 fattura differita di cui allart. 21, comma 4, lett. a) (normale);28/04/2023;1462;0;300;1;Spese correnti;3;Acquisto di beni e servizi;2;Acquisto di servizi;14;Servizi di ristorazione;2;Servizio mense personale civile;28/04/2023
615;1;398;724,83;724,83;MANO AMICA SOCIETA' COOPERTIVA SOCIALE ONLUS;ZA92FF198E;SALDO Fatt.n. 337 PA  del 31/03/2023 FATTURA;28/04/2023;1800;0;3;1;Spese correnti;3;Acquisto di beni e servizi;2;Acquisto di servizi;15;Contratti di servizio pubblico;9;Contratti di servizio di assistenza sociale domiciliare;28/04/2023
616;1;399;1.792,31;1.792,31;CON TE COOPERATIVA SOCIALE;8573456FB1;SALDO Fatt.n. 364  del 21/04/2023;28/04/2023;1801;0;2;1;Spese correnti;3;Acquisto di beni e servizi;2;Acquisto di servizi;15;Contratti di servizio pubblico;9;Contratti di servizio di assistenza sociale domiciliare;28/04/2023
617;1;400;463,14;3.487,29;ABACO S.P.A;Z272FF44F4;SALDO Fatt.n. 2023120001965  del 14/04/2023;28/04/2023;1187;1;1;1;Spese correnti;3;Acquisto di beni e servizi;2;Acquisto di servizi;3;Aggi di riscossione;999;Altri aggi di riscossione n.a.c.;28/04/2023
617;2;400;3.024,15;3.487,29;ABACO S.P.A;Z272FF44F4;SALDO Fatt.n. 2023120001972  del 17/04/2023;28/04/2023;1187;1;1;1;Spese correnti;3;Acquisto di beni e servizi;2;Acquisto di servizi;3;Aggi di riscossione;999;Altri aggi di riscossione n.a.c.;28/04/2023
618;1;401;400;400;Omologhia Srl;ZAD3AF4832;SALDO Fatt.n. FatPAM 522023  del 04/05/2023;02/05/2023;1040;0;73;1;Spese correnti;3;Acquisto di beni e servizi;2;Acquisto di servizi;4;Acquisto di servizi per formazione e addestramento del personale dell'ente;999;Acquisto di servizi per altre spese per formazione e addestramento n.a.c.;03/05/2023
623;1;432;1.459,12;1.459,12;ACCATRE - STP SRL;Z02391F4BD;Fatt.n. 488/1 del 21/04/2023;08/05/2023;1075;3;16;1;Spese correnti;3;Acquisto di beni e servizi;2;Acquisto di servizi;16;Servizi amministrativi;999;Altre spese per servizi amministrativi;08/05/2023
624;1;433;177,66;177,66;Telecom Italia S.p.A.;Z0F3225780;Fatt.n. 7X01664428 del 12/04/2023 Fattura Aprile 23: Periodo 3/23 Feb-Mar;08/05/2023;1209;3;251;1;Spese correnti;3;Acquisto di beni e servizi;2;Acquisto di servizi;5;Utenze e canoni;1;Telefonia fissa;08/05/2023
625;1;434;2.047,69;2.047,69;AZIENDA ULSS N.7 Pedemontana; ;Fatt.n. 006/207 del 24/03/2023 QUOTA RANDAGISMO CANI ANNO 2022;08/05/2023;1211;0;92;1;Spese correnti;3;Acquisto di beni e servizi;2;Acquisto di servizi;15;Contratti di servizio pubblico;11;Contratti di servizio per la lotta al randagismo;08/05/2023
627;1;442;5.685,86;5.685,86;CONSORZIO STABILE ENERGIE LOCALI S.C.A R.L.;7459958815;Fatt.n. 177 del 26/04/2023;12/05/2023;1938;0;30;1;Spese correnti;3;Acquisto di beni e servizi;2;Acquisto di servizi;15;Contratti di servizio pubblico;15;Contratti di servizio per l'illuminazione pubblica;12/05/2023
628;1;469;2.689,19;2.689,19;AMMINISTRATORI COMUNALI; ;STIPENDI MESE DI: MAGGIO 23;15/05/2023;1001;0;5;1;Spese correnti;3;Acquisto di beni e servizi;2;Acquisto di servizi;1;Organi e incarichi istituzionali dell'amministrazione;1;Organi istituzionali dell'amministrazione - Indennità;26/05/2023
682;1;459;125,49;125,49;FORNITURE INDUSTRIALI MORO SNC;Z7C304DAD6;Fatt.n. 2023-E-0000011 del 30/04/2023 0;17/05/2023;1156;1;35;1;Spese correnti;3;Acquisto di beni e servizi;1;Acquisto di beni;2;Altri beni di consumo;7;Altri materiali tecnico-specialistici non sanitari;17/05/2023
683;1;460;350,56;350,56;BATTISTELLO SILVANO AZIENDA AGRICOLA;ZDC34CA716;Fatt.n. 6/02 del 11/05/2023;17/05/2023;1156;3;23;1;Spese correnti;3;Acquisto di beni e servizi;2;Acquisto di servizi;9;Manutenzione ordinaria e riparazioni;8;Manutenzione ordinaria e riparazioni di beni immobili;17/05/2023
684;1;461;52,44;52,44;BATTISTELLO SILVANO AZIENDA AGRICOLA;ZDC34CA716;Fatt.n. 6/02 del 11/05/2023;17/05/2023;1156;3;23;1;Spese correnti;3;Acquisto di beni e servizi;2;Acquisto di servizi;9;Manutenzione ordinaria e riparazioni;8;Manutenzione ordinaria e riparazioni di beni immobili;17/05/2023
685;1;462;10.684,06;10.684,06;LEONARDI VIAGGI SRL;93637223D7;Fatt.n. 313 del 30/04/2023 Servizio di Trasporto Persone;17/05/2023;1418;0;191;1;Spese correnti;3;Acquisto di beni e servizi;2;Acquisto di servizi;15;Contratti di servizio pubblico;2;Contratti di servizio di trasporto scolastico;17/05/2023
686;1;463;622,69;622,69;FONTANA MICHAEL;Z9A38851AB;Fatt.n. 24 del 30/04/2023;17/05/2023;1656;5;12;1;Spese correnti;3;Acquisto di beni e servizi;2;Acquisto di servizi;15;Contratti di servizio pubblico;999;Altre spese per contratti di servizio pubblico;17/05/2023
687;1;464;1.000,00;1.000,00;BATTISTELLO SILVANO AZIENDA AGRICOLA;ZDC34CA716;Fatt.n. 6/02 del 11/05/2023;17/05/2023;1928;7;271;1;Spese correnti;3;Acquisto di beni e servizi;2;Acquisto di servizi;9;Manutenzione ordinaria e riparazioni;12;Manutenzione ordinaria e riparazioni di terreni e beni materiali non prodotti;17/05/2023
688;1;465;1.971,50;1.971,50;"CONSIGLIO DI BACINO ""VICENZA"""; ;CONSIGLIO DI BACINO VICENZA PER LA GESTIONE DEI RIFIUTI URBANI - IMPEGNO DI SPESA E CONTESTUALE LIQUIDAZIONE QUOTA PER ABITANTE DEL CANONE ANNUO PER LADESIONE AI SERVIZI - ANNO 2023 - Quota canone anno 2023 Comune di Fara Vicentino;17/05/2023;1161;0;82;1;Spese correnti;3;Acquisto di beni e servizi;2;Acquisto di servizi;5;Utenze e canoni;999;Utenze e canoni per altri servizi n.a.c.;17/05/2023
689;1;467;342,58;342,58;ACCATRE - STP SRL;Z603A47E0D;Fatt.n. 495/1 del 26/04/2023;18/05/2023;1186;3;53;1;Spese correnti;3;Acquisto di beni e servizi;2;Acquisto di servizi;19;Servizi informatici e di telecomunicazioni;1;Gestione e manutenzione applicazioni;19/05/2023
690;1;0;0,19;0,19;EQUITALIA NORD SPA AGENTE PER LA RISCOSSIONE; ;SPESE RISCOSSIONE TRIBUTI - COMPENSO PER RUOLI MANDATO VINCOLATO ALLA REVERSALE 475;23/05/2023;1187;0;37;1;Spese correnti;3;Acquisto di beni e servizi;2;Acquisto di servizi;3;Aggi di riscossione;999;Altri aggi di riscossione n.a.c.;23/05/2023
691;1;0;10,4;10,4;EQUITALIA NORD SPA AGENTE PER LA RISCOSSIONE; ;SPESE RISCOSSIONE TRIBUTI - COMPENSO PER RUOLI MANDATO VINCOLATO ALLA REVERSALE 479;23/05/2023;1187;0;37;1;Spese correnti;3;Acquisto di beni e servizi;2;Acquisto di servizi;3;Aggi di riscossione;999;Altri aggi di riscossione n.a.c.;23/05/2023
692;1;0;0,03;0,03;EQUITALIA NORD SPA AGENTE PER LA RISCOSSIONE; ;SPESE RISCOSSIONE TRIBUTI - COMPENSO PER RUOLI MANDATO VINCOLATO ALLA REVERSALE 481;23/05/2023;1187;0;37;1;Spese correnti;3;Acquisto di beni e servizi;2;Acquisto di servizi;3;Aggi di riscossione;999;Altri aggi di riscossione n.a.c.;23/05/2023
693;1;0;0,93;0,93;EQUITALIA NORD SPA AGENTE PER LA RISCOSSIONE; ;SPESE RISCOSSIONE TRIBUTI - COMPENSO PER RUOLI MANDATO VINCOLATO ALLA REVERSALE 486;23/05/2023;1187;0;37;1;Spese correnti;3;Acquisto di beni e servizi;2;Acquisto di servizi;3;Aggi di riscossione;999;Altri aggi di riscossione n.a.c.;23/05/2023
694;1;0;0,63;0,63;EQUITALIA NORD SPA AGENTE PER LA RISCOSSIONE; ;SPESE RISCOSSIONE TRIBUTI - COMPENSO PER RUOLI AMNDATO VINCOLATO ALLA REVERSALE 488;23/05/2023;1187;0;37;1;Spese correnti;3;Acquisto di beni e servizi;2;Acquisto di servizi;3;Aggi di riscossione;999;Altri aggi di riscossione n.a.c.;23/05/2023
695;1;0;0,81;0,81;EQUITALIA NORD SPA AGENTE PER LA RISCOSSIONE; ;SPESE RISCOSSIONE TRIBUTI - COMPENSO PER RUOLI MANDATO VINCOLATO ALLA REVERSALE 491;23/05/2023;1187;0;37;1;Spese correnti;3;Acquisto di beni e servizi;2;Acquisto di servizi;3;Aggi di riscossione;999;Altri aggi di riscossione n.a.c.;23/05/2023
696;1;0;0,22;0,22;EQUITALIA NORD SPA AGENTE PER LA RISCOSSIONE; ;SPESE RISCOSSIONE TRIBUTI - COMPENSO PER RUOLI MANDATO VINCOLATO ALLA REVERSALE 493;23/05/2023;1187;0;37;1;Spese correnti;3;Acquisto di beni e servizi;2;Acquisto di servizi;3;Aggi di riscossione;999;Altri aggi di riscossione n.a.c.;23/05/2023
697;1;0;0,53;0,53;EQUITALIA NORD SPA AGENTE PER LA RISCOSSIONE; ;SPESE RISCOSSIONE TRIBUTI - COMPENSO PER RUOLI MANDATO VINCOLATO ALLA REVERSALE 495;23/05/2023;1187;0;37;1;Spese correnti;3;Acquisto di beni e servizi;2;Acquisto di servizi;3;Aggi di riscossione;999;Altri aggi di riscossione n.a.c.;23/05/2023
698;1;0;0,25;0,25;EQUITALIA NORD SPA AGENTE PER LA RISCOSSIONE; ;SPESE RISCOSSIONE TRIBUTI - COMPENSO PER RUOLI MANDATO VINCOLATO ALLA REVERSALE 497;23/05/2023;1187;0;37;1;Spese correnti;3;Acquisto di beni e servizi;2;Acquisto di servizi;3;Aggi di riscossione;999;Altri aggi di riscossione n.a.c.;23/05/2023
699;1;468;36,75;36,75;POSTE ITALIANE S.P.A.;Z2C399259D;Fatt.n. 1023116982 del 02/05/2023 30026276-008;24/05/2023;1210;6;25;1;Spese correnti;3;Acquisto di beni e servizi;2;Acquisto di servizi;16;Servizi amministrativi;2;Spese postali;24/05/2023
701;1;489;671,36;671,36;ANCI VENETO - ASSOCIAZIONE REGIONALE COMUNI DEL VENETO; ;ADESIONE QUOTA ANCI VENETO ANNO 2023 - IMPEGNO DI SPESA.;05/06/2023;1060;0;85;1;Spese correnti;4;Trasferimenti correnti;1;Trasferimenti correnti a Amministrazioni Pubbliche;4;Trasferimenti correnti a organismi interni e/o unità locali della amministrazione;1;Trasferimenti correnti a organismi interni e/o unità locali della amministrazione;07/06/2023
702;1;490;946,4;946,4;ASSOCIAZIONE PEDEMONTANA.VI TURISMO; ;IMPEGNO DI SPESA PER EROGAZIONE QUOTA ASSOCIATIVA 2023 OGD PEDEMONTANA VENETA E COLLI.;05/06/2023;2120;0;86;1;Spese correnti;4;Trasferimenti correnti;4;Trasferimenti correnti a Istituzioni Sociali Private;1;Trasferimenti correnti a Istituzioni Sociali Private;1;Trasferimenti correnti a Istituzioni Sociali Private;07/06/2023
704;1;0;9,54;9,54;EQUITALIA NORD SPA AGENTE PER LA RISCOSSIONE; ;SPESE RISCOSSIONE TRIBUTI - COMPENSO PER RUOLI MANDATO VINCOLATO ALLA REVERSALE 502;06/06/2023;1187;0;37;1;Spese correnti;3;Acquisto di beni e servizi;2;Acquisto di servizi;3;Aggi di riscossione;999;Altri aggi di riscossione n.a.c.;06/06/2023
705;1;0;0,06;0,06;EQUITALIA NORD SPA AGENTE PER LA RISCOSSIONE; ;SPESE RISCOSSIONE TRIBUTI - COMPENSO PER RUOLI MANDATO VINCOLATO ALLA REVERSALE 504;06/06/2023;1187;0;37;1;Spese correnti;3;Acquisto di beni e servizi;2;Acquisto di servizi;3;Aggi di riscossione;999;Altri aggi di riscossione n.a.c.;06/06/2023
706;1;0;0,83;0,83;EQUITALIA NORD SPA AGENTE PER LA RISCOSSIONE; ;SPESE RISCOSSIONE TRIBUTI - COMPENSO PER RUOLI MANDATO VINCOLATO ALLA REVERSALE 509;06/06/2023;1187;0;37;1;Spese correnti;3;Acquisto di beni e servizi;2;Acquisto di servizi;3;Aggi di riscossione;999;Altri aggi di riscossione n.a.c.;06/06/2023
707;1;0;0,05;0,05;EQUITALIA NORD SPA AGENTE PER LA RISCOSSIONE; ;SPESE RISCOSSIONE TRIBUTI - COMPENSO PER RUOLI MANDATO VINCOLATO ALLA REVERSALE 511;06/06/2023;1187;0;37;1;Spese correnti;3;Acquisto di beni e servizi;2;Acquisto di servizi;3;Aggi di riscossione;999;Altri aggi di riscossione n.a.c.;06/06/2023
708;1;0;0,54;0,54;EQUITALIA NORD SPA AGENTE PER LA RISCOSSIONE; ;SPESE RISCOSSIONE TRIBUTI - COMPENSO PER RUOLI MANDATO VINCOLATO ALLA REVERSALE 513;06/06/2023;1187;0;37;1;Spese correnti;3;Acquisto di beni e servizi;2;Acquisto di servizi;3;Aggi di riscossione;999;Altri aggi di riscossione n.a.c.;06/06/2023
709;1;492;440;440;CAROLLO MARIA TERESA E FIGLI SNC;ZCE3ADEE29;Fatt.n. 17-fior del 11/05/2023 CORONE E FIORI 25 APRILE;07/06/2023;1003;0;69;1;Spese correnti;3;Acquisto di beni e servizi;1;Acquisto di beni;2;Altri beni di consumo;9;Beni per attività di rappresentanza;08/06/2023
710;1;493;2.791,36;2.791,36;TEKNOENGINEERING BEDA & MATTAROLO STUDIO ASSOC.;Z071AFE472;Fatt.n. FPA 7/23 del 19/05/2023;07/06/2023;1086;0;154;1;Spese correnti;3;Acquisto di beni e servizi;2;Acquisto di servizi;10;Consulenze;1;Incarichi libero professionali di studi, ricerca e consulenza;08/06/2023
711;1;494;1.508,44;1.508,44;ALFA ANTINCENDIO S.N.C.;Z1B3882893;Fatt.n. 51 del 30/04/2023;07/06/2023;1156;3;13;1;Spese correnti;3;Acquisto di beni e servizi;2;Acquisto di servizi;9;Manutenzione ordinaria e riparazioni;8;Manutenzione ordinaria e riparazioni di beni immobili;08/06/2023
712;1;495;15.451,30;15.451,30;HALLEY VENETO SRL;Z483AD6609;Fatt.n. 1/230992 del 15/05/2023;07/06/2023;1186;3;76;1;Spese correnti;3;Acquisto di beni e servizi;2;Acquisto di servizi;19;Servizi informatici e di telecomunicazioni;1;Gestione e manutenzione applicazioni;08/06/2023
713;1;496;6.050,00;6.050,00;VILLANOVA GILLES;Z6935B2399;Fatt.n. FPA 2/23 del 01/06/2023;07/06/2023;1730;0;22;1;Spese correnti;3;Acquisto di beni e servizi;2;Acquisto di servizi;9;Manutenzione ordinaria e riparazioni;8;Manutenzione ordinaria e riparazioni di beni immobili;08/06/2023
714;1;497;22.145,88;22.145,88;ALTO VICENTINO AMBIENTE S.R.L.; ;Fatt.n. 315FS del 30/04/2023;07/06/2023;1737;0;37;1;Spese correnti;3;Acquisto di beni e servizi;2;Acquisto di servizi;15;Contratti di servizio pubblico;5;Contratti di servizio per il conferimento in discarica dei rifiuti;08/06/2023
715;1;498;1.235,98;1.235,98;STUDIO NICOLUSSI ANZOLON DESIGN DI S. NICOLUSSI ANZOLON;ZB53AF212C;Fatt.n. 24/00 del 15/05/2023 DETERMINAZIONE N. 25 DEL 02-05-2023Registro Generale N. 70Impegno N. 74 del 02-05-2023 a Competenza CIG ZB53AF212C5Â° livello 10.05-1.03.01.02.999 Altri beni e materiali di consumo n.a.c.Capito;07/06/2023;1928;4;74;1;Spese correnti;3;Acquisto di beni e servizi;1;Acquisto di beni;2;Altri beni di consumo;999;Altri beni e materiali di consumo n.a.c.;08/06/2023
716;1;499;5.093,77;5.093,77;CONSORZIO STABILE ENERGIE LOCALI S.C.A R.L.;7459958815;Fatt.n. 198 del 17/05/2023;07/06/2023;1938;0;30;1;Spese correnti;3;Acquisto di beni e servizi;2;Acquisto di servizi;15;Contratti di servizio pubblico;15;Contratti di servizio per l'illuminazione pubblica;08/06/2023
717;1;500;38.048,64;38.048,64;CARETTA CARLO E DEPAU LILIANA ARCHITETTI ASSOCIATI;8585108F3A;Fatt.n. Fattura5/2023 del 20/05/2023;07/06/2023;3520;0;309;2;Spese in conto capitale;2;Investimenti fissi lordi e acquisto di terreni;1;Beni materiali;9;Beni immobili;12;Infrastrutture stradali;08/06/2023
718;1;0;3,71;3,71;EQUITALIA NORD SPA AGENTE PER LA RISCOSSIONE; ;SPESE RISCOSSIONE TRIBUTI - COMPENSO PER RUOLI MANDATO VINCOLATO ALLA REVERSALE 524;08/06/2023;1187;0;37;1;Spese correnti;3;Acquisto di beni e servizi;2;Acquisto di servizi;3;Aggi di riscossione;999;Altri aggi di riscossione n.a.c.;08/06/2023
719;1;0;0,03;0,03;EQUITALIA NORD SPA AGENTE PER LA RISCOSSIONE; ;SPESE RISCOSSIONE TRIBUTI - COMPENSO PER RUOLI MANDATO VINCOLATO ALLA REVERSALE 526;08/06/2023;1187;0;37;1;Spese correnti;3;Acquisto di beni e servizi;2;Acquisto di servizi;3;Aggi di riscossione;999;Altri aggi di riscossione n.a.c.;08/06/2023
720;1;0;0,47;0,47;EQUITALIA NORD SPA AGENTE PER LA RISCOSSIONE; ;SPESE RISCOSSIONE TRIBUTI - COMPENSO PER RUOLI MANDATO VINCOLATO ALLA REVERSALE 528;08/06/2023;1187;0;37;1;Spese correnti;3;Acquisto di beni e servizi;2;Acquisto di servizi;3;Aggi di riscossione;999;Altri aggi di riscossione n.a.c.;08/06/2023
721;1;0;25,91;25,91;EQUITALIA NORD SPA AGENTE PER LA RISCOSSIONE; ;SPESE RISCOSSIONE TRIBUTI - COMPENSO PER RUOLI MANDATO VINCOLATO ALLA REVERSALE 531;08/06/2023;1187;0;37;1;Spese correnti;3;Acquisto di beni e servizi;2;Acquisto di servizi;3;Aggi di riscossione;999;Altri aggi di riscossione n.a.c.;08/06/2023
722;1;0;3,05;3,05;EQUITALIA NORD SPA AGENTE PER LA RISCOSSIONE; ;SPESE RISCOSSIONE TRIBUTI - COMPENSO PER RUOLI MANDATO VINCOLATO ALLA REVERSALE 537;08/06/2023;1187;0;37;1;Spese correnti;3;Acquisto di beni e servizi;2;Acquisto di servizi;3;Aggi di riscossione;999;Altri aggi di riscossione n.a.c.;08/06/2023
723;1;0;0,03;0,03;EQUITALIA NORD SPA AGENTE PER LA RISCOSSIONE; ;SPESE RISCOSSIONE TRIBUTI - COMPENSO PER RUOLI MANDATO VINCOLATO ALLA REVERSALE 539;08/06/2023;1187;0;37;1;Spese correnti;3;Acquisto di beni e servizi;2;Acquisto di servizi;3;Aggi di riscossione;999;Altri aggi di riscossione n.a.c.;08/06/2023
724;1;0;0,99;0,99;EQUITALIA NORD SPA AGENTE PER LA RISCOSSIONE; ;SPESE RISCOSSIONE TRIBUTI - COMPENSO PER RUOLI MANDATO VINCOLATO ALLA REVERSALE 541;08/06/2023;1187;0;37;1;Spese correnti;3;Acquisto di beni e servizi;2;Acquisto di servizi;3;Aggi di riscossione;999;Altri aggi di riscossione n.a.c.;08/06/2023
725;1;0;0,6;0,6;EQUITALIA NORD SPA AGENTE PER LA RISCOSSIONE; ;SPESE RISCOSSIONE TRIBUTI - COMPENSO PER RUOLI MANDATO VINCOLATO ALLA REVERSALE 544;08/06/2023;1187;0;37;1;Spese correnti;3;Acquisto di beni e servizi;2;Acquisto di servizi;3;Aggi di riscossione;999;Altri aggi di riscossione n.a.c.;08/06/2023
726;1;0;1,78;1,78;EQUITALIA NORD SPA AGENTE PER LA RISCOSSIONE; ;SPESE RISCOSSIONE TRIBUTI - COMPENSO PER RUOLI MANDATO VINCOLATO ALLA REVERSALE 546;08/06/2023;1187;0;37;1;Spese correnti;3;Acquisto di beni e servizi;2;Acquisto di servizi;3;Aggi di riscossione;999;Altri aggi di riscossione n.a.c.;08/06/2023
727;1;0;0,51;0,51;EQUITALIA NORD SPA AGENTE PER LA RISCOSSIONE; ;SPESE RISCOSSIONE TRIBUTI - COMPENSO PER RUOLI MANDATO VINCOLATO ALLA REVERSALE 548;08/06/2023;1187;0;37;1;Spese correnti;3;Acquisto di beni e servizi;2;Acquisto di servizi;3;Aggi di riscossione;999;Altri aggi di riscossione n.a.c.;08/06/2023
728;1;0;0,1;0,1;EQUITALIA NORD SPA AGENTE PER LA RISCOSSIONE; ;SPESE RISCOSSIONE TRIBUTI - COMPENSO PER RUOLI MANDATO VINCOLATO ALLA REVERSALE 550;08/06/2023;1187;0;37;1;Spese correnti;3;Acquisto di beni e servizi;2;Acquisto di servizi;3;Aggi di riscossione;999;Altri aggi di riscossione n.a.c.;08/06/2023
729;1;0;0,7;0,7;EQUITALIA NORD SPA AGENTE PER LA RISCOSSIONE; ;SPESE RISCOSSIONE TRIBUTI - COMPENSO PER RUOLI MANDATO VINCOLATO ALLA REVERSALE 552;08/06/2023;1187;0;37;1;Spese correnti;3;Acquisto di beni e servizi;2;Acquisto di servizi;3;Aggi di riscossione;999;Altri aggi di riscossione n.a.c.;08/06/2023
730;1;0;0,25;0,25;EQUITALIA NORD SPA AGENTE PER LA RISCOSSIONE; ;SPESE RISCOSSIONE TRIBUTI - COMPENSO PER RUOLI MANDATO VINCOLATO ALLA REVERSALE 554;08/06/2023;1187;0;37;1;Spese correnti;3;Acquisto di beni e servizi;2;Acquisto di servizi;3;Aggi di riscossione;999;Altri aggi di riscossione n.a.c.;08/06/2023
731;1;501;148,61;373,77;CHEF EXPRESS S.R.L.;ZED393B953;Fatt.n. 3/10/2023 del 28/04/2023 fattura differita di cui all'art. 21, comma 4, lett. a) (normale);08/06/2023;1462;0;300;1;Spese correnti;3;Acquisto di beni e servizi;2;Acquisto di servizi;14;Servizi di ristorazione;2;Servizio mense personale civile;09/06/2023
731;2;501;225,16;373,77;CHEF EXPRESS S.R.L.;ZED393B953;Fatt.n. 3/14/2023 del 31/05/2023 fattura differita di cui all'art. 21, comma 4, lett. a) (normale);08/06/2023;1462;0;300;1;Spese correnti;3;Acquisto di beni e servizi;2;Acquisto di servizi;14;Servizi di ristorazione;2;Servizio mense personale civile;09/06/2023
732;1;502;680,97;680,97;MANO AMICA SOCIETA' COOPERTIVA SOCIALE ONLUS;ZA92FF198E;Fatt.n. 421 PA del 30/04/2023 FATTURA;08/06/2023;1800;0;3;1;Spese correnti;3;Acquisto di beni e servizi;2;Acquisto di servizi;15;Contratti di servizio pubblico;9;Contratti di servizio di assistenza sociale domiciliare;09/06/2023
733;1;503;1.532,90;1.532,90;CON TE COOPERATIVA SOCIALE;8573456FB1;Fatt.n. 443 del 22/05/2023;08/06/2023;1801;0;2;1;Spese correnti;3;Acquisto di beni e servizi;2;Acquisto di servizi;15;Contratti di servizio pubblico;9;Contratti di servizio di assistenza sociale domiciliare;09/06/2023
734;1;530;4.101,46;4.101,46;AP RETI GAS SPA; ;IVA SU PRIMA RATA CANONE GAS - MANDATO VINCOLATO ALLA REVERSALE 559;09/06/2023;1851;0;88;1;Spese correnti;10;Altre spese correnti;99;Altre spese correnti n.a.c.;99;Altre spese correnti n.a.c.;999;Altre spese correnti n.a.c.;12/06/2023
735;1;504;47.747,48;47.747,48;AZIENDA ULSS N.7 Pedemontana; ;SALDO Fatt.n. 006/288  del 08/05/2023 PRIMA TRANCHE QUOTE ASSOCIATIVE ANNO 2023;09/06/2023;1907;0;67;1;Spese correnti;4;Trasferimenti correnti;1;Trasferimenti correnti a Amministrazioni Pubbliche;2;Trasferimenti correnti a Amministrazioni Locali;20;Trasferimenti correnti a Aziende sanitarie locali  a titolo di finanziamento del servizio sanitario nazionale;09/06/2023
736;1;505;91,5;91,5;EDILKLIMA GROUP S.P.A.;Z32303CED5;Fatt.n. 100/3223 del 31/05/2023 Destinazione merce: CIG: Z32303CED5 2023;09/06/2023;1156;1;34;1;Spese correnti;3;Acquisto di beni e servizi;1;Acquisto di beni;2;Altri beni di consumo;7;Altri materiali tecnico-specialistici non sanitari;09/06/2023
737;1;506;352;352;CONSORZIO ENERGIA VENETO CEV; ;Fatt.n. 409/Q del 26/05/2023 Scarico per vendite;09/06/2023;1156;5;157;1;Spese correnti;3;Acquisto di beni e servizi;2;Acquisto di servizi;5;Utenze e canoni;4;Energia elettrica;09/06/2023
738;1;507;20,41;51,02;FASTWEB SPA;Z092D1F2D3;Fatt.n. PAE0014693 del 30/04/2023;09/06/2023;1209;3;253;1;Spese correnti;3;Acquisto di beni e servizi;2;Acquisto di servizi;5;Utenze e canoni;1;Telefonia fissa;09/06/2023
738;2;507;30,61;51,02;FASTWEB SPA;Z092D1F2D3;Fatt.n. PAE0014693 del 30/04/2023;09/06/2023;1209;3;253;1;Spese correnti;3;Acquisto di beni e servizi;2;Acquisto di servizi;5;Utenze e canoni;1;Telefonia fissa;09/06/2023
739;1;508;81,63;81,63;FASTWEB SPA;Z092D1F2D3;Fatt.n. PAE0014693 del 30/04/2023;09/06/2023;1209;3;253;1;Spese correnti;3;Acquisto di beni e servizi;2;Acquisto di servizi;5;Utenze e canoni;1;Telefonia fissa;09/06/2023
740;1;509;12,88;33,29;FASTWEB SPA;Z092D1F2D3;Fatt.n. PAE0014693 del 30/04/2023;09/06/2023;1366;4;254;1;Spese correnti;3;Acquisto di beni e servizi;2;Acquisto di servizi;5;Utenze e canoni;1;Telefonia fissa;09/06/2023
740;2;509;20,41;33,29;FASTWEB SPA;Z092D1F2D3;Fatt.n. PAE0014693 del 30/04/2023;09/06/2023;1366;4;254;1;Spese correnti;3;Acquisto di beni e servizi;2;Acquisto di servizi;5;Utenze e canoni;1;Telefonia fissa;09/06/2023
741;1;510;20,41;20,41;FASTWEB SPA;Z092D1F2D3;Fatt.n. PAE0014693 del 30/04/2023;09/06/2023;1386;2;255;1;Spese correnti;3;Acquisto di beni e servizi;2;Acquisto di servizi;5;Utenze e canoni;1;Telefonia fissa;09/06/2023
742;1;511;20,41;20,41;FASTWEB SPA;Z092D1F2D3;Fatt.n. PAE0014693 del 30/04/2023;09/06/2023;1476;3;256;1;Spese correnti;3;Acquisto di beni e servizi;2;Acquisto di servizi;5;Utenze e canoni;1;Telefonia fissa;09/06/2023
743;1;512;22.145,88;22.145,88;ALTO VICENTINO AMBIENTE S.R.L.; ;Fatt.n. 391FS del 31/05/2023;09/06/2023;1737;0;37;1;Spese correnti;3;Acquisto di beni e servizi;2;Acquisto di servizi;15;Contratti di servizio pubblico;5;Contratti di servizio per il conferimento in discarica dei rifiuti;09/06/2023
744;1;513;9,94;57,48;A2A ENERGIA SPA;7459958815;Fatt.n. 823000149491 del 06/06/2023 FORNITURA ENERGIA ELETTRICA periodo: 01.03.2023-30.04.2023 POD IT001E35196035 Contatore 19E4E5LA106070412 kWh 33;09/06/2023;1938;0;30;1;Spese correnti;3;Acquisto di beni e servizi;2;Acquisto di servizi;15;Contratti di servizio pubblico;15;Contratti di servizio per l'illuminazione pubblica;09/06/2023
744;2;513;47,54;57,48;A2A ENERGIA SPA;7459958815;Fatt.n. 823000149953 del 06/06/2023 FORNITURA ENERGIA ELETTRICA periodo: 01.03.2023-30.04.2023 POD IT001E32137195 Contatore 05E1E5A2101304504 kWh 159;09/06/2023;1938;0;30;1;Spese correnti;3;Acquisto di beni e servizi;2;Acquisto di servizi;15;Contratti di servizio pubblico;15;Contratti di servizio per l'illuminazione pubblica;09/06/2023
745;1;0;12,5;12,5;EQUITALIA NORD SPA AGENTE PER LA RISCOSSIONE; ;SPESE RISCOSSIONE TRIBUTI - COMPENSO PER RUOLI MANDATO VINCOLATO ALLA REVERSALE 576;13/06/2023;1187;0;37;1;Spese correnti;3;Acquisto di beni e servizi;2;Acquisto di servizi;3;Aggi di riscossione;999;Altri aggi di riscossione n.a.c.;13/06/2023
746;1;0;1,22;1,22;EQUITALIA NORD SPA AGENTE PER LA RISCOSSIONE; ;SPESE RISCOSSIONE TRIBUTI - COMPENSO PER RUOLI MANDATO VINCOLATO ALLA REVERSALE 579;13/06/2023;1187;0;37;1;Spese correnti;3;Acquisto di beni e servizi;2;Acquisto di servizi;3;Aggi di riscossione;999;Altri aggi di riscossione n.a.c.;13/06/2023
747;1;0;0,03;0,03;EQUITALIA NORD SPA AGENTE PER LA RISCOSSIONE; ;SPESE RISCOSSIONE TRIBUTI - COMPENSO PER RUOLI MANDATO VINCOLATO ALLA REVERSALE 581;13/06/2023;1187;0;37;1;Spese correnti;3;Acquisto di beni e servizi;2;Acquisto di servizi;3;Aggi di riscossione;999;Altri aggi di riscossione n.a.c.;13/06/2023
748;1;0;0,04;0,04;EQUITALIA NORD SPA AGENTE PER LA RISCOSSIONE; ;SPESE RISCOSSIONE TRIBUTI - COMPENSO PER RUOLI MANDATO VINCOLATO ALLA REVERSALE 583;13/06/2023;1187;0;37;1;Spese correnti;3;Acquisto di beni e servizi;2;Acquisto di servizi;3;Aggi di riscossione;999;Altri aggi di riscossione n.a.c.;13/06/2023
749;1;543;30,5;30,5;PROVINCIA DI VICENZA;Z913A2CD25;Acquisto n.1 firma digitale PER Sig. GASTALDON FABIO;15/06/2023;1210;3;49;1;Spese correnti;3;Acquisto di beni e servizi;1;Acquisto di beni;2;Altri beni di consumo;6;Materiale informatico;23/06/2023
750;1;544;6,64;6,64;GESTORE DEI SERVIZI ENERGETICI SPA;ZB73522CC1;ACCONTO Fatt.n. 2022010833  del 15/03/2023 CORRISPETTIVO A COPERTURA DEGLI ONERI DI GESTIONE CONVENZIONE: T07E06973207 - MANDATO VINCOLATO ALLA REVERSALE 585;15/06/2023;1829;0;55;1;Spese correnti;3;Acquisto di beni e servizi;2;Acquisto di servizi;5;Utenze e canoni;4;Energia elettrica;23/06/2023
756;1;558;2.689,19;2.689,19;AMMINISTRATORI COMUNALI; ;STIPENDI MESE DI: GIUGNO 23;20/06/2023;1001;0;5;1;Spese correnti;3;Acquisto di beni e servizi;2;Acquisto di servizi;1;Organi e incarichi istituzionali dell'amministrazione;1;Organi istituzionali dell'amministrazione - Indennità;27/06/2023
806;1;0;1,85;1,85;EQUITALIA NORD SPA AGENTE PER LA RISCOSSIONE; ;SPESE RISCOSSIONE TRIBUTI - COMPENSO PER RUOLI MANDATO VINCOLATO ALLA REVERSALE 606;22/06/2023;1187;0;37;1;Spese correnti;3;Acquisto di beni e servizi;2;Acquisto di servizi;3;Aggi di riscossione;999;Altri aggi di riscossione n.a.c.;22/06/2023
807;1;0;5,61;5,61;EQUITALIA NORD SPA AGENTE PER LA RISCOSSIONE; ;SPESE RISCOSSIONE TRIBUTI - COMPENSO PER RUOLI MANDATO VINCOLATO ALLA REVERSALE 608;22/06/2023;1187;0;37;1;Spese correnti;3;Acquisto di beni e servizi;2;Acquisto di servizi;3;Aggi di riscossione;999;Altri aggi di riscossione n.a.c.;22/06/2023
808;1;0;2,43;2,43;EQUITALIA NORD SPA AGENTE PER LA RISCOSSIONE; ;SPESE RISCOSSIONE TRIBUTI - COMPENSO PER RUOLI MANDATO VINCOLATO ALLA REVERSALE 611;22/06/2023;1187;0;37;1;Spese correnti;3;Acquisto di beni e servizi;2;Acquisto di servizi;3;Aggi di riscossione;999;Altri aggi di riscossione n.a.c.;22/06/2023
809;1;0;4,59;4,59;EQUITALIA NORD SPA AGENTE PER LA RISCOSSIONE; ;SPESE RISCOSSIONE TRIBUTI - COMPENSO PER RUOLI MANDATO VINCOLATO ALLA REVERSALE 617;22/06/2023;1187;0;37;1;Spese correnti;3;Acquisto di beni e servizi;2;Acquisto di servizi;3;Aggi di riscossione;999;Altri aggi di riscossione n.a.c.;22/06/2023
810;1;0;0,03;0,03;EQUITALIA NORD SPA AGENTE PER LA RISCOSSIONE; ;SPESE RISCOSSIONE TRIBUTI - COMPENSO PER RUOLI MANDATO VINCOLATO ALLA REVERSALE 619;22/06/2023;1187;0;37;1;Spese correnti;3;Acquisto di beni e servizi;2;Acquisto di servizi;3;Aggi di riscossione;999;Altri aggi di riscossione n.a.c.;22/06/2023
811;1;0;0,2;0,2;EQUITALIA NORD SPA AGENTE PER LA RISCOSSIONE; ;SPESE RISCOSSIONE TRIBUTI - COMPENSO PER RUOLI MANDATO VINCOLATO ALLA REVERSALE 621;22/06/2023;1187;0;37;1;Spese correnti;3;Acquisto di beni e servizi;2;Acquisto di servizi;3;Aggi di riscossione;999;Altri aggi di riscossione n.a.c.;22/06/2023
812;1;0;0,11;0,11;EQUITALIA NORD SPA AGENTE PER LA RISCOSSIONE; ;SPESE RISCOSSIONE TRIBUTI - COMPENSO PER RUOLI MANDATO VINCOLATO ALLA REVERSALE 623;22/06/2023;1187;0;37;1;Spese correnti;3;Acquisto di beni e servizi;2;Acquisto di servizi;3;Aggi di riscossione;999;Altri aggi di riscossione n.a.c.;22/06/2023
813;1;0;0,2;0,2;EQUITALIA NORD SPA AGENTE PER LA RISCOSSIONE; ;SPESE RISCOSSIONE TRIBUTI - COMPENSO PER RUOLI MANDATO VINCOLATO ALLA REVERSALE 628;22/06/2023;1187;0;37;1;Spese correnti;3;Acquisto di beni e servizi;2;Acquisto di servizi;3;Aggi di riscossione;999;Altri aggi di riscossione n.a.c.;22/06/2023
814;1;546;6.086,76;6.086,76;MAGIC CLEAN SRL;Z713864ABC;Fatt.n. 219PA del 31/05/2023;26/06/2023;1043;4;313;1;Spese correnti;3;Acquisto di beni e servizi;2;Acquisto di servizi;13;Servizi ausiliari per il funzionamento dell'ente;2;Servizi di pulizia e lavanderia;26/06/2023
815;1;547;115;115;FORNITURE INDUSTRIALI MORO SNC;Z7C304DAD6;Fatt.n. 2023-E-0000013 del 31/05/2023 0;26/06/2023;1156;1;35;1;Spese correnti;3;Acquisto di beni e servizi;1;Acquisto di beni;2;Altri beni di consumo;7;Altri materiali tecnico-specialistici non sanitari;26/06/2023
816;1;548;99,68;99,68;Telecom Italia S.p.A.;Z0F3225780;Fatt.n. 7X02752552 del 10/06/2023 Fattura Giugno 23: Periodo 4/23 Apr-Mag;26/06/2023;1209;3;251;1;Spese correnti;3;Acquisto di beni e servizi;2;Acquisto di servizi;5;Utenze e canoni;1;Telefonia fissa;26/06/2023
817;1;549;68,23;68,23;Telecom Italia S.p.A.;Z0F3225780;Fatt.n. 7X02752552 del 10/06/2023 Fattura Giugno 23: Periodo 4/23 Apr-Mag;26/06/2023;1209;3;251;1;Spese correnti;3;Acquisto di beni e servizi;2;Acquisto di servizi;5;Utenze e canoni;1;Telefonia fissa;26/06/2023
818;1;550;10.684,06;10.684,06;LEONARDI VIAGGI SRL;93637223D7;Fatt.n. 443 del 31/05/2023 Servizio di Trasporto Persone;26/06/2023;1418;0;191;1;Spese correnti;3;Acquisto di beni e servizi;2;Acquisto di servizi;15;Contratti di servizio pubblico;2;Contratti di servizio di trasporto scolastico;26/06/2023
819;1;551;1.240,01;1.240,01;FONTANA MICHAEL;Z9A38851AB;Fatt.n. 29 del 31/05/2023;26/06/2023;1656;5;12;1;Spese correnti;3;Acquisto di beni e servizi;2;Acquisto di servizi;15;Contratti di servizio pubblico;999;Altre spese per contratti di servizio pubblico;26/06/2023
820;1;552;115,28;115,28;DAL BIANCO RUGGERO - TRASPORTI SCAVI;Z4734DD80D;"Fatt.n. 50/2023 del 16/06/2023 Operazione con ""scissione dei pagamenti"" art. 17-ter DPR 633/72";26/06/2023;1928;6;30;1;Spese correnti;3;Acquisto di beni e servizi;2;Acquisto di servizi;7;Utilizzo di beni di terzi;2;Noleggi di mezzi di trasporto;26/06/2023
821;1;553;804,6;804,6;DAL BIANCO RUGGERO - TRASPORTI SCAVI;Z4734DD80D;"Fatt.n. 50/2023 del 16/06/2023 Operazione con ""scissione dei pagamenti"" art. 17-ter DPR 633/72";26/06/2023;1928;6;30;1;Spese correnti;3;Acquisto di beni e servizi;2;Acquisto di servizi;7;Utilizzo di beni di terzi;2;Noleggi di mezzi di trasporto;26/06/2023
822;1;554;4.777,18;4.777,18;CONSORZIO STABILE ENERGIE LOCALI S.C.A R.L.;7459958815;Fatt.n. 234 del 09/06/2023;26/06/2023;1938;0;30;1;Spese correnti;3;Acquisto di beni e servizi;2;Acquisto di servizi;15;Contratti di servizio pubblico;15;Contratti di servizio per l'illuminazione pubblica;26/06/2023
823;1;556;10,1;235,84;A2A ENERGIA SPA;7459958815;Fatt.n. 823000153559 del 08/06/2023 FORNITURA ENERGIA ELETTRICA periodo: 01.03.2023-30.04.2023 POD IT001E32137198 Contatore 05E1E5A2101304498 kWh 33;26/06/2023;1938;0;30;1;Spese correnti;3;Acquisto di beni e servizi;2;Acquisto di servizi;15;Contratti di servizio pubblico;15;Contratti di servizio per l'illuminazione pubblica;26/06/2023
823;2;556;20,47;235,84;A2A ENERGIA SPA;7459958815;Fatt.n. 823000151053 del 07/06/2023 FORNITURA ENERGIA ELETTRICA periodo: 01.03.2023-30.04.2023 POD IT001E32260885 Contatore 05E1E5A2101656729 kWh 68;26/06/2023;1938;0;30;1;Spese correnti;3;Acquisto di beni e servizi;2;Acquisto di servizi;15;Contratti di servizio pubblico;15;Contratti di servizio per l'illuminazione pubblica;26/06/2023
823;3;556;23,01;235,84;A2A ENERGIA SPA;7459958815;Fatt.n. 823000153646 del 08/06/2023 FORNITURA ENERGIA ELETTRICA periodo: 01.03.2023-30.04.2023 POD IT001E32249705 Contatore 04E1E5A2100275566 kWh 76;26/06/2023;1938;0;30;1;Spese correnti;3;Acquisto di beni e servizi;2;Acquisto di servizi;15;Contratti di servizio pubblico;15;Contratti di servizio per l'illuminazione pubblica;26/06/2023
823;4;556;34,98;235,84;A2A ENERGIA SPA;7459958815;Fatt.n. 823000155503 del 09/06/2023 FORNITURA ENERGIA ELETTRICA periodo: 01.03.2023-30.04.2023 POD IT001E33577560 Contatore 05E1E5A2101656622 kWh 117;26/06/2023;1938;0;30;1;Spese correnti;3;Acquisto di beni e servizi;2;Acquisto di servizi;15;Contratti di servizio pubblico;15;Contratti di servizio per l'illuminazione pubblica;26/06/2023
823;5;556;36,38;235,84;A2A ENERGIA SPA;7459958815;Fatt.n. 823000155814 del 09/06/2023 FORNITURA ENERGIA ELETTRICA periodo: 01.03.2023-30.04.2023 POD IT001E33571946 Contatore 08E4E5A7100368874 kWh 38;26/06/2023;1938;0;30;1;Spese correnti;3;Acquisto di beni e servizi;2;Acquisto di servizi;15;Contratti di servizio pubblico;15;Contratti di servizio per l'illuminazione pubblica;26/06/2023
823;6;556;36,38;235,84;A2A ENERGIA SPA;7459958815;Fatt.n. 823000151391 del 07/06/2023 FORNITURA ENERGIA ELETTRICA periodo: 01.03.2023-30.04.2023 POD IT001E33571944 Contatore 08E4E5A7100368871 kWh 38;26/06/2023;1938;0;30;1;Spese correnti;3;Acquisto di beni e servizi;2;Acquisto di servizi;15;Contratti di servizio pubblico;15;Contratti di servizio per l'illuminazione pubblica;26/06/2023
823;7;556;74,52;235,84;A2A ENERGIA SPA;7459958815;Fatt.n. 823000155920 del 09/06/2023 FORNITURA ENERGIA ELETTRICA periodo: 01.03.2023-30.04.2023 POD IT001E31516558 Contatore 04E1E5A2100150303 kWh 243;26/06/2023;1938;0;30;1;Spese correnti;3;Acquisto di beni e servizi;2;Acquisto di servizi;15;Contratti di servizio pubblico;15;Contratti di servizio per l'illuminazione pubblica;26/06/2023
824;1;555;12.596,50;12.596,50;EDIL.POLGA SRL;Z173B214B0;Fatt.n. 10/001 del 13/06/2023;26/06/2023;3062;0;80;2;Spese in conto capitale;2;Investimenti fissi lordi e acquisto di terreni;1;Beni materiali;9;Beni immobili;19;Fabbricati ad uso strumentale;26/06/2023
825;1;0;21,89;21,89;UNICREDIT SPA- UFFICIO TESORERIA ENTI; ;IVA COMMERCIALE MESE DI GIUGNO 2023;29/06/2023;1850;0;93;1;Spese correnti;10;Altre spese correnti;3;Versamenti IVA a debito;1;Versamenti IVA a debito per le gestioni commerciali;1;Versamenti IVA a debito per le gestioni commerciali;29/06/2023
